fUST/lending_fUST_20250911
["ID","MTS","AMOUNT","RATE_DAILY","PERIOD"]
[384848789,1757590253884,-497.25,0.00018356,2]
[384848790,1757590253894,-586.16,0.00018356,2]
[384848791,1757590253903,-151.0,0.00018356,2]
[384848792,1757590253912,-151.0,0.00018356,2]
[384848793,1757590253922,-151.0,0.00018356,2]
[384848794,1757590253931,-151.0,0.00018356,2]
[384848795,1757590253941,-151.0,0.00018356,2]
[384848796,1757590253950,-190.649492,0.00018356,2]
[384848797,1757590253959,-190.649492,0.00018356,2]
[384848798,1757590253967,-190.649492,0.00018356,2]
[384848799,1757590253977,-190.649492,0.00018356,2]
[384848800,1757590253986,-151.0,0.00018356,2]
[384848801,1757590253995,-151.0,0.00018356,2]
[384848802,1757590254004,-480.0,0.00018356,2]
[384848803,1757590254014,-3618.14,0.00018356,2]
[384848804,1757590254024,-480.0,0.00018356,2]
[384848805,1757590254034,-805.62,0.00018356,2]
[384848806,1757590254043,-480.0,0.00018356,2]
[384848807,1757590254053,-151.0,0.0001863,2]
[384848808,1757590254062,-151.0,0.0001863,2]
[384848809,1757590254072,-151.0,0.0001863,2]
[384848810,1757590254081,-151.0,0.0001863,2]
[384848811,1757590254091,-151.0,0.0001863,2]
[384848812,1757590254100,-151.0,0.0001863,2]
[384848813,1757590254110,-151.0,0.0001863,2]
[384848814,1757590254126,-1155.98,0.0001863,2]
[384848815,1757590254136,-1507.5,0.0001863,2]
[384848816,1757590254145,-1398.09,0.0001863,2]
[384848817,1757590254154,-515.99,0.0001863,2]
[384848818,1757590254164,-662.94,0.0001863,2]
[384848819,1757590254173,-480.0,0.0001863,2]
[384848820,1757590254183,-497.25,0.0001863,2]
[384848821,1757590254192,-586.16,0.0001863,2]
[384848822,1757590254202,-480.0,0.0001863,2]
[384848823,1757590254211,-3618.14,0.0001863,2]
[384848824,1757590254220,-480.0,0.0001863,2]
[384848825,1757590254230,-805.62,0.0001863,2]
[384848826,1757590254239,-480.0,0.0001863,2]
[384848827,1757590254249,-1500.0,0.00018755,2]
[384848828,1757590254258,-152.345617,0.00018904,2]
[384848829,1757590254267,-151.0,0.00018904,2]
[384848830,1757590254276,-157.552116,0.00018904,2]
[384848831,1757590254286,-151.0,0.00018904,2]
[384848832,1757590254296,-151.0,0.00018904,2]
[384848833,1757590254307,-151.0,0.00018904,2]
[384848834,1757590254316,-151.0,0.00018904,2]
[384848835,1757590254325,-207.810134,0.00018904,2]
[384848836,1757590254334,-207.810134,0.00018904,2]
[384848837,1757590254343,-207.810134,0.00018904,2]
[384848838,1757590254352,-207.810134,0.00018904,2]
[384848839,1757590254363,-151.0,0.00018904,2]
[384848840,1757590254371,-151.0,0.00018904,2]
[384848841,1757590254380,-151.0,0.00018904,2]
[384848842,1757590254390,-1155.98,0.00018904,2]
[384848843,1757590254399,-1507.5,0.00018904,2]
[384848844,1757590254409,-1398.09,0.00018904,2]
[384848845,1757590254418,-515.99,0.00018904,2]
[384848846,1757590254428,-416.014268,0.00018904,2]
[384848847,1757590254437,-416.014268,0.00018904,2]
[384848848,1757590254446,-662.94,0.00018904,2]
[384848849,1757590254456,-416.014268,0.00018904,2]
[384848850,1757590254537,-359.608805,0.00018904,2]
[384848851,1757590254547,-416.014268,0.00018904,2]
[384848852,1757590254556,-151.0,0.00018904,2]
[384848853,1757590254566,-359.608805,0.00018904,2]
[384848854,1757590254576,-359.608805,0.00018904,2]
[384848855,1757590254585,-359.608805,0.00018904,2]
[384848856,1757590254595,-629.85,0.00018904,2]
[384848857,1757590254605,-497.25,0.00018904,2]
[384848858,1757590254613,-151.0,0.00018904,2]
[384848859,1757590254622,-362.316528,0.00018904,2]
[384848860,1757590254632,-362.316528,0.00018904,2]
[384848861,1757590254641,-362.316528,0.00018904,2]
[384848862,1757590254650,-586.16,0.00018904,2]
[384848863,1757590254659,-362.316528,0.00018904,2]
[384848864,1757590254669,-480.0,0.00018904,2]
[384848865,1757590254678,-3618.14,0.00018904,2]
[384848866,1757590254688,-546.83,0.00018904,2]
[384848867,1757590254697,-805.62,0.00018904,2]
[384848868,1757590254707,-383.65,0.00018904,2]
[384848869,1757590254716,-198.0,0.00019147,2]
[384848870,1757590254725,-182.593598,0.00019178,2]
[384848871,1757590254735,-182.593598,0.00019178,2]
[384848872,1757590254744,-182.593598,0.00019178,2]
[384848873,1757590254754,-182.593598,0.00019178,2]
[384848874,1757590254763,-151.0,0.00019178,2]
[384848875,1757590254772,-151.0,0.00019178,2]
[384848876,1757590254781,-151.0,0.00019178,2]
[384848877,1757590254791,-170.74942,0.00019178,2]
[384848878,1757590254800,-151.0,0.00019178,2]
[384848879,1757590254809,-1155.98,0.00019178,2]
[384848880,1757590254818,-1507.5,0.00019178,2]
[384848881,1757590254827,-1398.09,0.00019178,2]
[384848882,1757590254840,-515.99,0.00019178,2]
[384848883,1757590254850,-662.94,0.00019178,2]
[384848884,1757590254859,-497.25,0.00019178,2]
[384848885,1757590254868,-586.16,0.00019178,2]
[384848886,1757590254878,-480.0,0.00019178,2]
[384848887,1757590254889,-3618.14,0.00019178,2]
[384848888,1757590254899,-805.62,0.00019178,2]
[384848889,1757590254908,-198.0,0.00019198,2]
[384848890,1757590254920,-198.0,0.00019277,2]
[384848891,1757590254929,-17557.60399864,0.000193,2]
[384848892,1757590255045,-480.0,0.00013972,2]
[384848893,1757590255056,-480.0,0.00013972,2]
[384848894,1757590255066,-480.0,0.00014246,2]
[384848895,1757590255076,-480.0,0.00014246,2]
[384848896,1757590255086,-480.0,0.0001452,2]
[384848897,1757590255095,-480.0,0.0001452,2]
[384848898,1757590255104,-39.35419702,0.00014794,2]
[384848899,1757590255116,-440.64580298,0.00014794,2]
[384848900,1757590255126,-480.0,0.00014794,2]
[384848901,1757590255135,-480.0,0.00015068,2]
[384848902,1757590255144,-480.0,0.00015342,2]
[384848903,1757590255153,-480.0,0.00015616,2]
[384848904,1757590255163,-2157.50247259,0.000193,2]
[384848905,1757590255172,-151.0,0.000193,2]
[384848906,1757590255181,-151.0,0.000193,2]
[384848907,1757590255194,-151.0,0.000193,2]
[384848908,1757590255204,-286.607893,0.000193,2]
[384848909,1757590255214,-151.0,0.000193,2]
[384848910,1757590255223,-151.0,0.000193,2]
[384848911,1757590255232,-151.0,0.000193,2]
[384848912,1757590255242,-616.196084,0.000193,2]
[384848913,1757590255251,-616.196084,0.000193,2]
[384848914,1757590255261,-616.196084,0.000193,2]
[384848915,1757590255270,-616.196084,0.000193,2]
[384848916,1757590255280,-151.0,0.000193,2]
[384848917,1757590255289,-221.104194,0.000193,2]
[384848918,1757590255299,-2000.0,0.00019303,2]
[384848919,1757590255308,-198.0,0.00019331,2]
[384848920,1757590255317,-198.0,0.00019422,2]
[384848921,1757590255326,-1155.98,0.00019452,2]
[384848922,1757590255335,-1507.5,0.00019452,2]
[384848923,1757590255345,-1398.09,0.00019452,2]
[384848924,1757590255354,-515.99,0.00019452,2]
[384848925,1757590255363,-662.94,0.00019452,2]
[384848926,1757590255372,-497.25,0.00019452,2]
[384848927,1757590255382,-586.16,0.00019452,2]
[384848928,1757590255392,-288.69,0.00019452,2]
[384848929,1757590255401,-3618.14,0.00019452,2]
[384848930,1757590255411,-805.62,0.00019452,2]
[384848931,1757590255421,-198.0,0.00019603,2]
[384848932,1757590255431,-198.0,0.00019659,2]
[384848933,1757590255440,-198.0,0.00019669,2]
[384848934,1757590255449,-198.0,0.00019703,2]
[384848935,1757590255459,-1155.98,0.00019726,2]
[384848936,1757590255467,-1507.5,0.00019726,2]
[384848937,1757590255477,-1398.09,0.00019726,2]
[384848938,1757590255487,-515.99,0.00019726,2]
[384848939,1757590255496,-662.94,0.00019726,2]
[384848940,1757590255505,-497.25,0.00019726,2]
[384848941,1757590255515,-586.16,0.00019726,2]
[384848942,1757590255524,-3618.14,0.00019726,2]
[384848943,1757590255533,-805.62,0.00019726,2]
[384848944,1757590255544,-1152.0,0.00019755,2]
[384848945,1757590255553,-198.0,0.00019781,2]
[384848946,1757590255563,-198.0,0.00019829,2]
[384848947,1757590255573,-2500.0,0.00019851,2]
[384848948,1757590255584,-176.83162092,0.00019871,2]
[384848949,1757590255594,-198.0,0.00019886,2]
[384848950,1757590255603,-153.276402,0.000199,2]
[384848951,1757590255613,-187.61241,0.000199,2]
[384848952,1757590255622,-187.61241,0.000199,2]
[384848953,1757590255632,-187.61241,0.000199,2]
[384848954,1757590255642,-187.61241,0.000199,2]
[384848955,1757590255651,-151.0,0.000199,2]
[384848956,1757590255661,-151.0,0.000199,2]
[384848957,1757590255671,-9820.67617955,0.000199,2]
[384848958,1757590255680,-198.0,0.00019948,2]
[384848959,1757590255689,-198.0,0.0001995,2]
[384848960,1757590255698,-805.123,0.00019998,2]
[384848961,1757590255707,-11724.89202529,0.00019998,2]
[384848962,1757590255717,-151.0,0.00019998,2]
[384848963,1757590255726,-221.217208,0.00019998,2]
[384848964,1757590255735,-151.0,0.00019998,2]
[384848965,1757590255745,-151.0,0.00019998,2]
[384848966,1757590255754,-151.0,0.00019998,2]
[384848967,1757590255764,-151.0,0.00019998,2]
[384848968,1757590255773,-151.0,0.00019998,2]
[384848969,1757590255782,-151.0,0.00019998,2]
[384848970,1757590255791,-180.600102,0.00019998,2]
[384848971,1757590255801,-180.600102,0.00019998,2]
[384848972,1757590255810,-180.600102,0.00019998,2]
[384848973,1757590255821,-180.600092,0.00019998,2]
[384848974,1757590255830,-151.0,0.0002,2]
[384848975,1757590255844,-151.0,0.0002,2]
[384848976,1757590255853,-151.0,0.0002,2]
[384848977,1757590255862,-1156.16,0.0002,2]
[384848978,1757590255872,-1507.57,0.0002,2]
[384848979,1757590255881,-1398.3,0.0002,2]
[384848980,1757590255890,-516.16,0.0002,2]
[384848981,1757590255900,-662.94241604,0.0002,2]
[384848982,1757590255911,-497.37,0.0002,2]
[384848983,1757590255920,-586.19,0.0002,2]
[384848984,1757590255929,-250.77025382,0.0002,7]
[384848985,1757590255939,-3618.27,0.0002,2]
[384848986,1757590255948,-805.71,0.0002,2]
[384848987,1757590255957,-3005.34611487,0.0002,4]
[384848988,1757590256049,-480.0,0.0001589,2]
[384848989,1757590256059,-994.65388513,0.0002,4]
[384848990,1757590256069,-198.0,0.0002011,2]
[384848991,1757590256078,-198.0,0.00020149,2]
[384848992,1757590256088,-198.0,0.00020155,2]
[384848993,1757590256097,-31.58838643,0.00020187,2]
[384848994,1757590256137,-393.55892076,0.00020187,2]
[384848995,1757590256280,-3103.06267635,0.00013561,2]
[384848996,1757590256290,-480.0,0.00013698,2]
[384848997,1757590256300,-480.0,0.00016164,2]
[384848998,1757590256309,-480.0,0.00016438,2]
[384848999,1757590256318,-480.0,0.00016712,2]
[384849000,1757590256327,-480.0,0.00016986,2]
[384849001,1757590256336,-480.0,0.0001726,2]
[384849002,1757590256345,-300.15,0.00017534,2]
[384849003,1757590256354,-20.67457281,0.00020187,2]
[384849004,1757590256363,-198.0,0.00020196,2]
[384849005,1757590256372,-12500.0,0.00020273,7]
[384849006,1757590256381,-417.15472785,0.00020273,7]
[384849007,1757590256390,-249.286569,0.00020273,2]
[384849008,1757590256399,-151.0,0.00020273,2]
[384849009,1757590256408,-151.0,0.00020273,2]
[384849010,1757590256417,-165.492123,0.00020273,2]
[384849011,1757590256426,-190.649492,0.00020273,2]
[384849012,1757590256435,-190.649492,0.00020273,2]
[384849013,1757590256444,-190.649492,0.00020273,2]
[384849014,1757590256453,-190.649492,0.00020273,2]
[384849015,1757590256462,-160.0,0.00020273,7]
[384849016,1757590256471,-530.95967032,0.00020273,7]
[384849017,1757590256480,-198.0,0.00020303,2]
[384849018,1757590256489,-151.0,0.00020327,2]
[384849019,1757590256499,-211.54478212,0.00020327,2]
[384849020,1757590256510,-2993.74285067,0.00020327,2]
[384849021,1757590256523,-6615.38854651,0.00020327,2]
[384849022,1757590256532,-3000.0,0.00020399,2]
[384849023,1757590256541,-198.0,0.00020456,2]
[384849024,1757590256550,-198.0,0.00020533,2]
[384849025,1757590256561,-198.0,0.00020542,2]
[384849026,1757590256571,-801.929791,0.00020548,2]
[384849027,1757590256580,-1788.98000667,0.00020712,2]
[384849028,1757590256648,-480.0,0.00013972,2]
[384849029,1757590256657,-411.01999333,0.00020712,2]
[384849030,1757590256666,-234.70128405,0.00020755,2]
[384849031,1757590256677,-9585.97489525,0.00020755,2]
[384849032,1757590256686,-198.0,0.00020792,2]
[384849033,1757590256695,-198.0,0.0002085,2]
[384849034,1757590256704,-151.0,0.00020893,2]
[384849035,1757590256713,-151.0,0.00020893,2]
[384849036,1757590256722,-151.0,0.00020893,2]
[384849037,1757590256731,-198.96209,0.00020893,2]
[384849038,1757590256740,-151.0,0.00020893,2]
[384849039,1757590256748,-976.0,0.00020893,2]
[384849040,1757590256758,-634.0,0.00020893,2]
[384849041,1757590256766,-2154.0,0.00020893,2]
[384849042,1757590256775,-409.0,0.00020893,2]
[384849043,1757590256784,-3500.0,0.00020946,2]
[384849044,1757590256793,-198.0,0.00020971,2]
[384849045,1757590256803,-157.0,0.00021054,2]
[384849046,1757590256811,-157.0,0.00021054,2]
[384849047,1757590256820,-157.0,0.00021054,2]
[384849048,1757590256829,-157.0,0.00021054,2]
[384849049,1757590256841,-157.0,0.00021054,2]
[384849050,1757590256850,-157.0,0.00021054,2]
[384849051,1757590256859,-302.0,0.00021054,2]
[384849052,1757590256868,-305.86419186,0.00021054,2]
[384849053,1757590256878,-157.0,0.00021054,2]
[384849054,1757590256886,-157.0,0.00021054,2]
[384849055,1757590256895,-157.0,0.00021054,2]
[384849056,1757590256904,-302.0,0.00021054,2]
[384849057,1757590256914,-157.0,0.00021054,2]
[384849058,1757590256923,-157.0,0.00021054,2]
[384849059,1757590256932,-193.65231507,0.00021054,2]
[384849060,1757590256941,-157.0,0.00021054,2]
[384849061,1757590256949,-157.0,0.00021054,2]
[384849062,1757590256958,-157.0,0.00021054,2]
[384849063,1757590256967,-181.67260504,0.00021054,2]
[384849064,1757590256976,-157.0,0.00021054,2]
[384849065,1757590256984,-157.0,0.00021054,2]
[384849066,1757590256993,-157.0,0.00021054,2]
[384849067,1757590257004,-500.0,0.00021054,2]
[384849068,1757590257013,-416.014268,0.00021054,2]
[384849069,1757590257022,-416.014268,0.00021054,2]
[384849070,1757590257031,-416.014268,0.00021054,2]
[384849071,1757590257040,-359.608805,0.00021054,2]
[384849072,1757590257049,-416.014259,0.00021054,2]
[384849073,1757590257058,-151.0,0.00021054,2]
[384849074,1757590257067,-359.608805,0.00021054,2]
[384849075,1757590257076,-359.608805,0.00021054,2]
[384849076,1757590257084,-359.608801,0.00021054,2]
[384849077,1757590257094,-222.066546,0.00021054,2]
[384849078,1757590257103,-362.316528,0.00021054,2]
[384849079,1757590257112,-362.316528,0.00021054,2]
[384849080,1757590257122,-362.316528,0.00021054,2]
[384849081,1757590257131,-362.316528,0.00021054,2]
[384849082,1757590257140,-283.587879,0.00021182,2]
[384849083,1757590257149,-207.810134,0.00021182,2]
[384849084,1757590257159,-207.810134,0.00021182,2]
[384849085,1757590257167,-207.810134,0.00021182,2]
[384849086,1757590257177,-207.810134,0.00021182,2]
[384849087,1757590257186,-151.0,0.00021182,2]
[384849088,1757590257195,-213.83252,0.00021182,2]
[384849089,1757590257203,-197.839427,0.00021182,2]
[384849090,1757590257212,-9820.6761793,0.00021182,2]
[384849091,1757590257221,-500.0,0.00021253,2]
[384849092,1757590257230,-500.0,0.00021253,2]
[384849093,1757590257239,-285.35358678,0.00021309,2]
[384849094,1757590257248,-151.0,0.0002132,2]
[384849095,1757590257257,-151.0,0.0002132,2]
[384849096,1757590257266,-151.0,0.0002132,2]
[384849097,1757590257275,-154.458215,0.0002132,2]
[384849098,1757590257283,-151.0,0.0002132,2]
[384849099,1757590257292,-151.0,0.0002132,2]
[384849100,1757590257301,-153.417798,0.0002132,2]
[384849101,1757590257310,-221.153683,0.0002132,2]
[384849102,1757590257319,-151.0,0.0002132,2]
[384849103,1757590257327,-182.593598,0.0002132,2]
[384849104,1757590257404,-182.593598,0.0002132,2]
[384849105,1757590257414,-182.593598,0.0002132,2]
[384849106,1757590257423,-182.593598,0.0002132,2]
[384849107,1757590257432,-151.0,0.0002132,2]
[384849108,1757590257441,-151.0,0.0002132,2]
[384849109,1757590257450,-151.0,0.0002132,2]
[384849110,1757590257459,-417.15472785,0.0002132,10]
[384849111,1757590257467,-160.0,0.0002132,10]
[384849112,1757590257476,-530.95967032,0.0002132,10]
[384849113,1757590257485,-14237.12,0.0002132,10]
[384849114,1757590257494,-308.0,0.00021328,2]
[384849115,1757590257503,-157.0,0.00021328,2]
[384849116,1757590257512,-157.0,0.00021328,2]
[384849117,1757590257521,-282.11178274,0.00021328,2]
[384849118,1757590257530,-157.0,0.00021328,2]
[384849119,1757590257539,-157.0,0.00021328,2]
[384849120,1757590257548,-181.88739911,0.00021328,2]
[384849121,1757590257557,-157.0,0.00021328,2]
[384849122,1757590257567,-157.0,0.00021328,2]
[384849123,1757590257576,-157.0,0.00021328,2]
[384849124,1757590257586,-247.53561892,0.00021328,2]
[384849125,1757590257595,-157.0,0.00021328,2]
[384849126,1757590257604,-157.0,0.00021328,2]
[384849127,1757590257615,-185.98,0.00021328,2]
[384849128,1757590257624,-157.0,0.00021328,2]
[384849129,1757590257633,-157.0,0.00021328,2]
[384849130,1757590257643,-157.0,0.00021328,2]
[384849131,1757590257652,-519.0,0.00021328,2]
[384849132,1757590257661,-616.196084,0.00021329,2]
[384849133,1757590257670,-616.196084,0.00021329,2]
[384849134,1757590257679,-616.196084,0.00021329,2]
[384849135,1757590257688,-616.196084,0.00021329,2]
[384849136,1757590257698,-94628.3088309,0.0002134,2]
[384849137,1757590257707,-151.0,0.0002134,2]
[384849138,1757590257717,-151.0,0.0002134,2]
[384849139,1757590257726,-151.0,0.0002134,2]
[384849140,1757590257735,-151.0,0.0002134,2]
[384849141,1757590257744,-151.0,0.0002134,2]
[384849142,1757590257754,-171.54062,0.0002134,2]
[384849143,1757590257765,-151.0,0.0002134,2]
[384849144,1757590257775,-187.61241,0.0002134,2]
[384849145,1757590257785,-187.61241,0.0002134,2]
[384849146,1757590257794,-187.61241,0.0002134,2]
[384849147,1757590257806,-187.612402,0.0002134,2]
[384849148,1757590257815,-151.0,0.0002134,2]
[384849149,1757590257825,-151.0,0.0002134,2]
[384849150,1757590257836,-4000.0,0.00021494,2]
[384849151,1757590257849,-157.0,0.00021602,2]
[384849152,1757590257858,-157.0,0.00021602,2]
[384849153,1757590257867,-157.0,0.00021602,2]
[384849154,1757590257877,-157.0,0.00021602,2]
[384849155,1757590257887,-157.0,0.00021602,2]
[384849156,1757590257898,-207.810134,0.00021603,2]
[384849157,1757590257907,-207.810134,0.00021603,2]
[384849158,1757590257916,-207.810134,0.00021603,2]
[384849159,1757590257927,-207.810134,0.00021603,2]
[384849160,1757590257936,-151.0,0.00021603,2]
[384849161,1757590257946,-182.593598,0.00021603,2]
[384849162,1757590257955,-182.593598,0.00021603,2]
[384849163,1757590257964,-182.593598,0.00021603,2]
[384849164,1757590257973,-182.593606,0.00021603,2]
[384849165,1757590257983,-151.0,0.00021603,2]
[384849166,1757590257992,-151.0,0.00021603,2]
[384849167,1757590258001,-9820.6761793,0.0002161,2]
[384849168,1757590258010,-3921.82207021,0.000218,2]
[384849169,1757590258021,-502.83841149,0.00021801,2]
[384849170,1757590258031,-592.25875634,0.00021801,2]
[384849171,1757590258040,-2200.0,0.00021808,2]
[384849172,1757590258049,-176.83162092,0.0002187,2]
[384849173,1757590258060,-157.0,0.00021876,2]
[384849174,1757590258070,-151.0,0.00021877,2]
[384849175,1757590258080,-229.526956,0.00021877,2]
[384849176,1757590258091,-151.0,0.00021877,2]
[384849177,1757590258101,-151.0,0.00021877,2]
[384849178,1757590258110,-151.0,0.00021877,2]
[384849179,1757590258121,-417.15472785,0.0002188,3]
[384849180,1757590258131,-2727.5972392,0.0002188,2]
[384849181,1757590258140,-6285.65748966,0.0002188,2]
[384849182,1757590258149,-160.0,0.0002188,3]
[384849183,1757590258159,-530.95967032,0.0002188,3]
[384849184,1757590258169,-321.30389808,0.000219,2]
[384849185,1757590258178,-978.16040544,0.00021918,2]
[384849186,1757590258188,-3908.72898015,0.00021918,2]
[384849187,1757590258198,-300.660166,0.00021918,7]
[384849188,1757590258207,-3359.5066414,0.00021969,2]
[384849189,1757590258216,-21947.3598852,0.00021969,2]
[384849190,1757590258225,-55701.42573736,0.0002197,15]
[384849191,1757590258240,-4619.19156626,0.0002197,15]
[384849192,1757590258251,-3922.46772281,0.0002197,15]
[384849196,1757590296679,664.64988506,0.000145,9]
[384849198,1757590478719,300.0,0.00013461,2]
[384849199,1757590503114,300.0,0.00013461,2]
[384849200,1757590527195,1444.0,0.00026137,120]
[384849201,1757590528234,300.0,0.00013461,2]
[384849202,1757590552179,300.0,0.00013461,2]
[384849203,1757590576402,300.0,0.00013461,2]
[384849204,1757590599467,300.0,0.00013461,2]
[384849205,1757590625276,619.30510177,0.00013461,2]
[384849207,1757590649256,300.0,0.00013461,2]
[384849208,1757590673942,300.0,0.00013461,2]
[384849209,1757590683288,300.0,0.00013461,2]
[384849210,1757590684683,609.23729743,0.00027397,120]
[384849211,1757590701257,300.0,0.00013461,2]
[384849212,1757590710087,300.0,0.00013461,2]
[384849213,1757590727457,300.0,0.00013461,2]
[384849214,1757590736097,300.0,0.00013461,2]
[384849215,1757590752487,300.0,0.00013461,2]
[384849216,1757590761779,300.0,0.00013461,2]
[384849217,1757590778177,300.0,0.00013461,2]
[384849218,1757590788105,300.0,0.00013461,2]
[384849219,1757590796884,214.22075784,0.00013461,2]
[384849220,1757590805663,619.30510177,0.00013461,2]
[384849225,1757590831802,300.0,0.00013461,2]
[384849226,1757590854972,300.0,0.00013461,2]
[384849227,1757590864354,300.0,0.00013461,2]
[384849228,1757590872743,168.0,0.00013461,2]
[384849229,1757590881649,300.0,0.00013461,2]
[384849230,1757590890698,300.0,0.00013461,2]
[384849231,1757590899227,168.0,0.00013461,2]
[384849232,1757590908025,300.0,0.00013461,2]
[384849233,1757590916330,111.17903862,0.00013461,2]
[384849234,1757590916354,83.2815511,0.00013461,2]
[384849235,1757590933294,300.0,0.00013461,2]
[384849236,1757590942059,168.0,0.00013461,2]
[384849237,1757590951991,300.0,0.00013461,2]
[384849238,1757590961382,300.0,0.00013461,2]
[384849239,1757590970291,168.0,0.00013461,2]
[384849240,1757590979495,300.0,0.00013461,2]
[384849241,1757590988735,300.0,0.00013461,2]
[384849242,1757590998351,168.0,0.00013461,2]
[384849243,1757591002127,331.450921,0.00027397,120]
[384849244,1757591006585,300.0,0.00013461,2]
[384849246,1757591014954,300.0,0.00013461,2]
[384849247,1757591023883,168.0,0.00013461,2]
[384849248,1757591033188,300.0,0.00013461,2]
[384849249,1757591042348,300.0,0.00013461,2]
[384849250,1757591045471,309.59,0.00012329,2]
[384849251,1757591051556,168.0,0.00013461,2]
[384849252,1757591055951,257.99,0.00012329,2]
[384849253,1757591060403,619.30510177,0.00013461,2]
[384849254,1757591066837,242.31,0.00012329,2]
[384849255,1757591070577,1119.30510177,0.00013461,2]
[384849256,1757591077355,201.92,0.00012329,2]
[384849257,1757591079308,168.0,0.00013461,2]
[384849258,1757591087768,168.27,0.00012329,2]
[384849259,1757591097764,2619.30510177,0.00013461,2]
[384849260,1757591098413,103.75864712,0.00012329,2]
[384849261,1757591098437,737.60135288,0.00012329,2]
[384849262,1757591106687,168.0,0.00013461,2]
[384849263,1757591122327,300.0,0.0001346,2]
[384849264,1757591131311,300.0,0.0001346,2]
[384849265,1757591140774,201.87783298,0.0001346,2]
[384849266,1757591149033,300.0,0.0001346,2]
[384849268,1757591157925,300.0,0.0001346,2]
[384849269,1757591174996,300.0,0.0001346,2]
[384849270,1757591183207,300.0,0.0001346,2]
[384849271,1757591200428,300.0,0.0001346,2]
[384849272,1757591210428,300.0,0.0001346,2]
[384849273,1757591216941,162.098278,0.0001319,2]
[384849274,1757591223722,1870.43,0.00028647,120]
[384849275,1757591224001,1870.43,0.00028647,120]
[384849276,1757591224249,1870.43,0.00028647,120]
[384849277,1757591224484,1870.43,0.00028647,120]
[384849278,1757591224716,1870.43,0.00028647,120]
[384849279,1757591225098,1870.43,0.00028647,120]
[384849280,1757591225338,1870.43,0.00028647,120]
[384849281,1757591225583,1870.43,0.00028647,120]
[384849282,1757591225811,1870.43,0.00028647,120]
[384849283,1757591226123,1870.43,0.00028647,120]
[384849284,1757591226362,1870.43,0.00028647,120]
[384849285,1757591226589,1870.43,0.00028647,120]
[384849286,1757591226847,300.0,0.0001346,2]
[384849287,1757591226886,1870.43,0.00028647,120]
[384849288,1757591227100,1870.43,0.00028647,120]
[384849289,1757591227347,1870.43,0.00028647,120]
[384849290,1757591227604,1870.43,0.00028647,120]
[384849291,1757591227859,1870.43,0.00028647,120]
[384849292,1757591228123,1870.43,0.00028647,120]
[384849293,1757591228379,1870.43,0.00028647,120]
[384849294,1757591228624,1870.43,0.00028647,120]
[384849295,1757591228867,1870.43,0.00028647,120]
[384849296,1757591229142,1870.43,0.00028647,120]
[384849297,1757591229448,1870.56375113,0.00028647,120]
[384849298,1757591236222,300.0,0.0001346,2]
[384849299,1757591252965,300.0,0.0001346,2]